fUSD/lending_fUSD_20250507
["ID","MTS","AMOUNT","RATE_DAILY","PERIOD"]
[360244217,1746657041415,-500.0,0.00019996,2]
[360244218,1746657041427,-500.0,0.00019996,2]
[360244219,1746657041438,-500.0,0.00019996,2]
[360244220,1746657041448,-461.15851401,0.00019996,2]
[360244221,1746657041460,-500.0,0.00019996,2]
[360244222,1746657041469,-500.0,0.00019996,2]
[360244223,1746657041479,-500.0,0.00019996,2]
[360244224,1746657041490,-500.0,0.00019996,2]
[360244225,1746657041501,-500.0,0.00019996,2]
[360244226,1746657041512,-500.0,0.00019996,2]
[360244227,1746657041522,-500.0,0.00019996,2]
[360244228,1746657041532,-500.0,0.00019996,2]
[360244229,1746657041542,-500.0,0.00019996,2]
[360244230,1746657041552,-500.0,0.00019996,2]
[360244231,1746657041562,-500.0,0.00019996,2]
[360244232,1746657041572,-500.0,0.00019996,2]
[360244233,1746657041582,-500.0,0.00019996,2]
[360244234,1746657041591,-500.0,0.00019996,2]
[360244235,1746657041601,-500.0,0.00019996,2]
[360244236,1746657041611,-500.0,0.00019996,2]
[360244237,1746657041620,-500.0,0.00019996,2]
[360244238,1746657041629,-500.0,0.00019996,2]
[360244239,1746657041639,-500.0,0.00019996,2]
[360244240,1746657041649,-356.76427463,0.00019996,2]
[360244241,1746657041659,-1263.99,0.00019996,2]
[360244242,1746657041669,-450.0,0.00019996,2]
[360244243,1746657041685,-450.0,0.00019996,2]
[360244244,1746657041701,-983.07,0.00019996,2]
[360244245,1746657041712,-966.71,0.00019996,2]
[360244246,1746657041723,-1032.94,0.00019996,2]
[360244247,1746657041733,-490.46,0.00019996,2]
[360244248,1746657041743,-1476.79,0.00019996,2]
[360244249,1746657041753,-450.0,0.00019996,2]
[360244250,1746657041764,-867.82,0.00019996,2]
[360244251,1746657041774,-450.0,0.00019996,2]
[360244252,1746657041785,-401.31036381,0.00019996,2]
[360244253,1746657041795,-707.88,0.00019996,2]
[360244254,1746657041806,-450.0,0.00019996,2]
[360244255,1746657041816,-1654.3,0.00019996,2]
[360244256,1746657041827,-450.0,0.00019996,2]
[360244257,1746657041838,-1582.55,0.00019996,2]
[360244258,1746657041849,-1155.18,0.00019996,2]
[360244259,1746657041860,-450.0,0.00019996,2]
[360244260,1746657041870,-450.0,0.00019996,2]
[360244261,1746657041880,-2128.72,0.00019996,2]
[360244262,1746657041895,-450.0,0.00019996,2]
[360244263,1746657041905,-450.0,0.00019996,2]
[360244264,1746657041915,-450.0,0.00019996,2]
[360244265,1746657041925,-450.0,0.00019996,2]
[360244266,1746657041935,-450.0,0.00019996,2]
[360244267,1746657041946,-450.0,0.00019996,2]
[360244268,1746657041956,-450.0,0.00019996,2]
[360244269,1746657041966,-450.0,0.00019996,2]
[360244270,1746657041976,-1236.11,0.00019996,2]
[360244271,1746657041985,-450.0,0.00019996,2]
[360244272,1746657041995,-548.90472056,0.00019997,2]
[360244273,1746657042006,-450.0,0.00019997,2]
[360244274,1746657042017,-450.0,0.00019997,2]
[360244275,1746657042026,-450.0,0.00019997,2]
[360244276,1746657042037,-90.93702064,0.00019997,2]
[360244277,1746657042064,-307.73300286,0.00019996,2]
[360244278,1746657042076,-142.26699714,0.00019996,2]
[360244279,1746657042087,-359.06297936,0.00019997,2]
[360244280,1746657042097,-450.0,0.00019997,2]
[360244281,1746657042107,-394.77,0.00019997,2]
[360244282,1746657042123,-487.19588173,0.00019997,2]
[360244283,1746657042134,-399.67513344,0.00019997,2]
[360244284,1746657042144,-500.0,0.00019997,2]
[360244285,1746657042154,-500.0,0.00019997,2]
[360244286,1746657042164,-500.0,0.00019997,2]
[360244287,1746657042175,-500.0,0.00019997,2]
[360244288,1746657042185,-508.53,0.00019997,2]
[360244289,1746657042195,-500.0,0.00019997,2]
[360244290,1746657042205,-450.0,0.00019997,2]
[360244291,1746657042215,-500.0,0.00019997,2]
[360244292,1746657042226,-327.28183547,0.00019997,2]
[360244293,1746657042236,-500.0,0.00019997,2]
[360244294,1746657042247,-500.0,0.00019997,2]
[360244295,1746657042257,-500.0,0.00019997,2]
[360244296,1746657042267,-500.0,0.00019997,2]
[360244297,1746657042278,-592.57880088,0.00019997,2]
[360244298,1746657042288,-500.0,0.00019997,2]
[360244299,1746657042299,-580.92779614,0.00019997,2]
[360244300,1746657042309,-500.0,0.00019997,2]
[360244301,1746657042319,-450.0,0.00019997,2]
[360244302,1746657042330,-450.0,0.00019997,2]
[360244303,1746657042340,-450.0,0.00019997,2]
[360244304,1746657042350,-450.0,0.00019997,2]
[360244305,1746657042360,-504.84723373,0.00019997,2]
[360244306,1746657042370,-525.74365468,0.00019997,2]
[360244307,1746657042381,-450.0,0.00019997,2]
[360244308,1746657042391,-450.0,0.00019997,2]
[360244309,1746657042401,-450.0,0.00019997,2]
[360244310,1746657042411,-450.0,0.00019997,2]
[360244311,1746657042421,-450.0,0.00019997,2]
[360244312,1746657042431,-450.0,0.00019997,2]
[360244313,1746657042441,-503.09028016,0.00019997,2]
[360244314,1746657042452,-450.0,0.00019997,2]
[360244315,1746657042462,-502.64692709,0.00019997,2]
[360244316,1746657042471,-450.0,0.00019997,2]
[360244317,1746657042481,-502.58909974,0.00019997,2]
[360244318,1746657042492,-509.73975754,0.00019997,2]
[360244319,1746657042502,-500.0,0.00019997,2]
[360244320,1746657042512,-511.70167596,0.00019997,2]
[360244321,1746657042521,-450.0,0.00019997,2]
[360244322,1746657042531,-500.0,0.00019997,2]
[360244323,1746657042541,-450.0,0.00019997,2]
[360244324,1746657042551,-450.0,0.00019997,2]
[360244325,1746657042562,-9.54942831,0.00019997,2]
[360244333,1746657043482,-305.42645956,0.00019996,2]
[360244338,1746657046357,-379.23354044,0.00019996,2]
[360244339,1746657046368,-450.0,0.00019996,2]
[360244340,1746657046382,-867.2,0.00019996,2]
[360244341,1746657046393,-440.45057169,0.00019997,2]
[360244342,1746657046404,-450.0,0.00019997,2]
[360244343,1746657046415,-308.39970112,0.00019997,2]
[360244344,1746657046431,-289.15819432,0.00019997,2]
[360244345,1746657046441,-112.59370568,0.00019997,2]
[360244346,1746657046454,-337.40629432,0.00019997,2]
[360244347,1746657046464,-450.0,0.00019997,2]
[360244348,1746657046475,-500.0,0.00019997,2]
[360244349,1746657046484,-500.0,0.00019997,2]
[360244350,1746657046495,-500.0,0.00019997,2]
[360244351,1746657046505,-450.0,0.00019997,2]
[360244352,1746657046515,-500.0,0.00019997,2]
[360244353,1746657046525,-564.95,0.00019997,2]
[360244354,1746657046535,-450.0,0.00019997,2]
[360244355,1746657046546,-598.82886249,0.00019997,2]
[360244356,1746657046556,-450.0,0.00019997,2]
[360244357,1746657046566,-500.0,0.00019997,2]
[360244358,1746657046576,-350.88597309,0.00019997,2]
[360244359,1746657046601,-149.11402691,0.00019997,2]
[360244360,1746657046611,-450.0,0.00019997,2]
[360244361,1746657046621,-500.0,0.00019997,2]
[360244362,1746657046632,-500.0,0.00019997,2]
[360244363,1746657046642,-500.0,0.00019997,2]
[360244364,1746657046656,-450.0,0.00019997,2]
[360244366,1746657046666,-369.32340242,0.00019997,2]
[360244367,1746657046678,-130.67659758,0.00019997,2]
[360244368,1746657046689,-450.0,0.00019997,2]
[360244369,1746657046700,-500.0,0.00019997,2]
[360244370,1746657046710,-552.2307825,0.00019997,2]
[360244371,1746657046721,-500.0,0.00019997,2]
[360244372,1746657046731,-450.0,0.00019997,2]
[360244373,1746657046742,-500.0,0.00019997,2]
[360244374,1746657046752,-450.0,0.00019997,2]
[360244375,1746657046762,-500.0,0.00019997,2]
[360244376,1746657046772,-450.0,0.00019997,2]
[360244377,1746657046782,-450.0,0.00019997,2]
[360244378,1746657046792,-450.0,0.00019997,2]
[360244379,1746657046802,-500.0,0.00019997,2]
[360244381,1746657046812,-500.0,0.00019997,2]
[360244383,1746657046822,-450.0,0.00019997,2]
[360244384,1746657046832,-500.0,0.00019997,2]
[360244385,1746657046842,-500.0,0.00019997,2]
[360244386,1746657046852,-500.0,0.00019997,2]
[360244387,1746657046863,-450.0,0.00019997,2]
[360244388,1746657046873,-450.0,0.00019997,2]
[360244389,1746657046883,-450.0,0.00019997,2]
[360244390,1746657046896,-450.0,0.00019997,2]
[360244391,1746657046907,-450.0,0.00019997,2]
[360244392,1746657046917,-500.0,0.00019997,2]
[360244393,1746657046928,-450.0,0.00019997,2]
[360244394,1746657046939,-450.0,0.00019997,2]
[360244395,1746657046949,-500.0,0.00019997,2]
[360244396,1746657046959,-500.0,0.00019997,2]
[360244397,1746657046971,-500.0,0.00019997,2]
[360244398,1746657046981,-500.0,0.00019997,2]
[360244399,1746657046991,-500.0,0.00019997,2]
[360244400,1746657047001,-229.06987198,0.00019997,2]
[360244401,1746657071846,376.74,0.00018292,2]
[360244404,1746657128008,450.0,0.0003,30]
[360244405,1746657201305,200.0,0.0003,30]
[360244406,1746657243127,150.0,0.0003,30]
[360244407,1746657244445,150.0,0.0003,30]
[360244408,1746657246476,150.0,0.0003,30]
[360244409,1746657247490,150.0,0.0003,30]
[360244410,1746657260284,217.06414006,0.00029041,120]
[360244411,1746657311056,150.0,0.0003,30]
[360244412,1746657339278,1000.0,0.00018946,2]
[360244413,1746657357925,450.0,0.00029589,30]
[360244414,1746657487501,154.98053032,0.0003,30]
[360244415,1746657489395,198.78392716,0.0003,30]
[360244416,1746657490437,150.0,0.0003,30]
[360244417,1746657534849,3123.60077349,0.0003,30]
[360244418,1746657604019,5000.0,0.0001999,7]
[360244419,1746657615018,156.13,0.00018958,2]
[360244420,1746657669440,150.0,0.0003,30]
[360244421,1746657737852,170.0689097,0.00030137,120]
[360244422,1746657742221,170.0689097,0.00030137,120]
[360244423,1746657745128,170.0689097,0.00030137,120]
[360244424,1746657757990,170.06890969,0.00030137,120]
[360244425,1746657767957,250.0,0.00017,2]
[360244426,1746657769049,300.0,0.00019,2]
[360244429,1746657992273,5051.48,0.0001893,2]
[360244430,1746658030068,200.0,0.0003,30]
[360244431,1746658109866,150.0,0.00018986,7]
[360244432,1746658114034,357.9,0.00017027,2]
[360244433,1746658114308,357.9,0.00019291,2]
[360244461,1746658231535,-172.18,0.000197,2]
[360244462,1746658231547,-250.0,0.00019769,2]
[360244463,1746658231559,-497.58235944,0.00019838,2]
[360244464,1746658231572,-200.0,0.00019838,2]
[360244465,1746658231585,-200.0,0.00019839,2]
[360244466,1746658231600,-200.0,0.00019856,2]
[360244467,1746658231612,-629.68015107,0.0001988,2]
[360244468,1746658231624,-207.4,0.00019885,2]
[360244469,1746658231636,-151.0,0.00019888,2]
[360244470,1746658231648,-668.65185757,0.00019888,2]
[360244471,1746658231659,-495.25770792,0.00019895,2]
[360244472,1746658231672,-495.25770791,0.00019896,2]
[360244473,1746658231683,-1200.0,0.00019896,2]
[360244474,1746658231695,-300.0,0.00019896,2]
[360244475,1746658231707,-300.0,0.00019896,2]
[360244476,1746658231720,-495.25770791,0.00019896,2]
[360244477,1746658231732,-495.25770791,0.00019897,2]
[360244478,1746658231743,-5815.3398,0.00019897,2]
[360244479,1746658231755,-196.23665365,0.00019897,2]
[360244481,1746658231767,-709.12434031,0.00019897,2]
[360244483,1746658231778,-495.25770791,0.00019897,2]
[360244485,1746658231790,-709.12434022,0.00019897,2]
[360244487,1746658231802,-709.12434022,0.00019898,2]
[360244490,1746658231814,-495.25770791,0.00019898,2]
[360244492,1746658231826,-709.12434022,0.00019898,2]
[360244494,1746658231838,-709.12434022,0.00019898,2]
[360244497,1746658231850,-495.25770791,0.00019898,2]
[360244501,1746658231861,-709.12434022,0.00019899,2]
[360244503,1746658231873,-158.96254415,0.00019899,2]
[360244506,1746658231884,-709.12434022,0.00019899,2]
[360244508,1746658231896,-850.0,0.00019899,2]
[360244510,1746658231907,-709.12434022,0.00019899,2]
[360244512,1746658231918,-709.12434022,0.000199,2]
[360244514,1746658231930,-1912.3975298,0.000199,2]
[360244516,1746658231941,-155.66266,0.000199,2]
[360244518,1746658231953,-709.12434022,0.000199,2]
[360244521,1746658231965,-500.0,0.00019973,2]
[360244523,1746658231976,-161.40094987,0.00019973,2]
[360244525,1746658231988,-172.7165433,0.00019985,2]
[360244527,1746658231999,-5409.1809023,0.00019985,2]
[360244529,1746658232011,-1510.8,0.00019985,2]
[360244532,1746658232023,-172.7165433,0.00019986,2]
[360244534,1746658232035,-172.7165433,0.00019986,2]
[360244536,1746658232046,-6391.295632,0.00019986,2]
[360244539,1746658232058,-4391.14825463,0.00019986,2]
[360244541,1746658232074,-2982.26210707,0.00019986,2]
[360244543,1746658232085,-551.00977011,0.00019994,2]
[360244545,1746658232098,-500.0,0.00019994,2]
[360244548,1746658232109,-500.0,0.00019994,2]
[360244550,1746658232121,-500.0,0.00019994,2]
[360244552,1746658232133,-500.0,0.00019994,2]
[360244554,1746658232144,-500.0,0.00019994,2]
[360244557,1746658232156,-500.0,0.00019994,2]
[360244559,1746658232168,-346.1158514,0.00019994,2]
[360244561,1746658232180,-20759.83007697,0.00019995,2]
[360244563,1746658232193,-452.27916836,0.00019995,2]
[360244566,1746658232207,-4245.1153792,0.00019995,2]
[360244569,1746658232228,-525.0,0.00019995,2]
[360244571,1746658232243,-35018.37431832,0.00019995,2]
[360244574,1746658232255,-497.26569405,0.00019995,2]
[360244576,1746658232266,-450.0,0.00019995,2]
[360244578,1746658232278,-445.94826399,0.00019995,2]
[360244580,1746658232289,-483.03297201,0.00019995,2]
[360244582,1746658232300,-450.0,0.00019995,2]
[360244585,1746658232312,-450.0,0.00019995,2]
[360244587,1746658232323,-450.0,0.00019995,2]
[360244589,1746658232335,-450.0,0.00019995,2]
[360244591,1746658232347,-450.0,0.00019995,2]
[360244594,1746658232358,-450.0,0.00019995,2]
[360244596,1746658232369,-450.0,0.00019995,2]
[360244598,1746658232381,-450.0,0.00019995,2]
[360244600,1746658232393,-450.0,0.00019995,2]
[360244602,1746658232404,-450.0,0.00019995,2]
[360244605,1746658232416,-450.0,0.00019995,2]
[360244607,1746658232428,-368.92898897,0.00019995,2]
[360244609,1746658232440,-479.40634295,0.00019995,2]
[360244611,1746658232451,-450.0,0.00019995,2]
[360244613,1746658232463,-450.0,0.00019995,2]
[360244615,1746658232474,-332.75,0.00019995,2]
[360244618,1746658232488,-476.24540273,0.00019995,2]
[360244620,1746658232499,-450.0,0.00019995,2]
[360244622,1746658232511,-450.0,0.00019995,2]
[360244624,1746658232523,-450.0,0.00019995,2]
[360244626,1746658232534,-450.0,0.00019995,2]
[360244628,1746658232546,-540.50678775,0.00019995,2]
[360244630,1746658232558,-450.0,0.00019995,2]
[360244632,1746658232569,-245.51823283,0.00019995,2]
[360244635,1746658232581,-450.0,0.00019995,2]
[360244637,1746658232592,-450.0,0.00019995,2]
[360244639,1746658232604,-450.0,0.00019995,2]
[360244641,1746658232616,-450.0,0.00019995,2]
[360244643,1746658232628,-450.0,0.00019995,2]
[360244646,1746658232639,-450.0,0.00019995,2]
[360244648,1746658232651,-450.0,0.00019995,2]
[360244650,1746658232663,-450.0,0.00019995,2]
[360244652,1746658232674,-450.0,0.00019995,2]
[360244655,1746658232686,-450.0,0.00019995,2]
[360244657,1746658232697,-450.0,0.00019995,2]
[360244658,1746658232709,-450.0,0.00019995,2]
[360244659,1746658232720,-450.0,0.00019995,2]
[360244660,1746658232732,-450.0,0.00019995,2]
[360244661,1746658232743,-450.0,0.00019995,2]
[360244662,1746658232755,-450.0,0.00019995,2]
[360244663,1746658232767,-450.0,0.00019995,2]
[360244664,1746658232778,-450.0,0.00019995,2]
[360244665,1746658232792,-450.0,0.00019995,2]
[360244666,1746658232804,-569.01,0.00019995,2]
[360244667,1746658232816,-450.0,0.00019995,2]
[360244668,1746658232827,-450.0,0.00019995,2]
[360244669,1746658232839,-450.0,0.00019995,2]
[360244670,1746658232851,-533.01,0.00019995,2]
[360244671,1746658232865,-450.0,0.00019995,2]
[360244672,1746658232876,-450.0,0.00019995,2]
[360244673,1746658232888,-450.0,0.00019995,2]
[360244674,1746658232900,-450.0,0.00019995,2]
[360244675,1746658232911,-450.0,0.00019995,2]
[360244676,1746658232923,-450.0,0.00019995,2]
[360244677,1746658232934,-450.0,0.00019995,2]
[360244678,1746658232944,-450.0,0.00019995,2]
[360244679,1746658232954,-450.0,0.00019995,2]
[360244680,1746658232964,-500.0,0.00019995,2]
[360244681,1746658232975,-550.0,0.00019995,2]
[360244682,1746658232985,-550.0,0.00019995,2]
[360244683,1746658232995,-500.0,0.00019995,2]
[360244684,1746658233006,-450.0,0.00019995,2]
[360244685,1746658233016,-181.59,0.00019995,2]
[360244686,1746658233026,-450.0,0.00019995,2]
[360244687,1746658233036,-452.15,0.00019995,2]
[360244688,1746658233046,-450.0,0.00019995,2]
[360244689,1746658233426,-1206.25,0.00019995,2]
[360244690,1746658233462,-450.0,0.00019995,2]
[360244691,1746658233482,-450.0,0.00019995,2]
[360244692,1746658233497,-450.0,0.00019995,2]
[360244693,1746658233507,-450.0,0.00019995,2]
[360244694,1746658233516,-450.0,0.00019995,2]
[360244695,1746658233526,-450.0,0.00019995,2]
[360244696,1746658233536,-450.0,0.00019995,2]
[360244697,1746658233546,-450.0,0.00019995,2]
[360244698,1746658233556,-450.0,0.00019995,2]
[360244699,1746658233567,-8708.3,0.00019995,2]
[360244700,1746658233577,-831.07,0.00019995,2]
[360244701,1746658233588,-450.0,0.00019995,2]
[360244702,1746658233597,-450.0,0.00019995,2]
[360244703,1746658233607,-450.0,0.00019995,2]
[360244704,1746658233617,-450.0,0.00019995,2]
[360244705,1746658233628,-450.0,0.00019995,2]
[360244706,1746658233638,-450.0,0.00019995,2]
[360244707,1746658233647,-450.0,0.00019995,2]
[360244708,1746658233657,-450.0,0.00019995,2]
[360244709,1746658233666,-209.57597756,0.00019995,2]
[360244710,1746658233676,-450.0,0.00019995,2]
[360244711,1746658233686,-450.0,0.00019995,2]
[360244712,1746658233695,-527.72,0.00019995,2]
[360244713,1746658233705,-450.0,0.00019995,2]
[360244714,1746658233715,-450.0,0.00019995,2]
[360244715,1746658233724,-450.0,0.00019995,2]
[360244716,1746658233734,-550.0,0.00019995,2]
[360244717,1746658233744,-450.0,0.00019995,2]
[360244718,1746658233753,-450.0,0.00019995,2]
[360244719,1746658233763,-450.0,0.00019995,2]
[360244720,1746658233772,-450.0,0.00019995,2]
[360244721,1746658233782,-450.0,0.00019995,2]
[360244722,1746658233792,-450.0,0.00019995,2]
[360244723,1746658233801,-945.18,0.00019995,2]
[360244724,1746658233811,-450.0,0.00019995,2]
[360244725,1746658233820,-450.0,0.00019995,2]
[360244726,1746658233830,-450.0,0.00019995,2]
[360244727,1746658233840,-450.0,0.00019995,2]
[360244728,1746658233849,-450.0,0.00019995,2]
[360244729,1746658233859,-450.0,0.00019995,2]
[360244730,1746658233868,-450.0,0.00019995,2]
[360244731,1746658233878,-450.0,0.00019995,2]
[360244732,1746658233888,-808.37,0.00019995,2]
[360244733,1746658233897,-450.0,0.00019995,2]
[360244734,1746658233906,-450.0,0.00019995,2]
[360244735,1746658233916,-450.0,0.00019995,2]
[360244736,1746658233926,-960.86,0.00019995,2]
[360244737,1746658233935,-450.0,0.00019995,2]
[360244738,1746658233949,-500.0,0.00019995,2]
[360244739,1746658233959,-450.0,0.00019995,2]
[360244740,1746658233968,-450.0,0.00019995,2]
[360244741,1746658233978,-450.0,0.00019995,2]
[360244742,1746658233988,-450.0,0.00019995,2]
[360244743,1746658233997,-874.74,0.00019995,2]
[360244744,1746658234007,-1434.0,0.00019995,2]
[360244745,1746658234017,-450.0,0.00019995,2]
[360244746,1746658234026,-450.0,0.00019995,2]
[360244747,1746658234036,-989.9,0.00019995,2]
[360244748,1746658234045,-450.0,0.00019995,2]
[360244749,1746658234055,-450.0,0.00019995,2]
[360244750,1746658234066,-1709.52,0.00019995,2]
[360244751,1746658234076,-486.98,0.00019995,2]
[360244752,1746658234087,-450.0,0.00019995,2]
[360244753,1746658234097,-450.0,0.00019995,2]
[360244754,1746658234107,-450.0,0.00019995,2]
[360244755,1746658234117,-450.0,0.00019995,2]
[360244756,1746658234127,-831.66,0.00019995,2]
[360244757,1746658234136,-450.0,0.00019995,2]
[360244758,1746658234147,-1381.96,0.00019995,2]
[360244759,1746658234157,-492.34,0.00019995,2]
[360244760,1746658234167,-450.0,0.00019995,2]
[360244761,1746658234178,-450.0,0.00019995,2]
[360244762,1746658234187,-450.0,0.00019995,2]
[360244763,1746658234197,-450.0,0.00019995,2]
[360244764,1746658234207,-450.0,0.00019995,2]
[360244765,1746658234217,-450.0,0.00019995,2]
[360244766,1746658234226,-500.0,0.00019995,2]
[360244767,1746658234236,-450.0,0.00019995,2]
[360244768,1746658234246,-450.0,0.00019995,2]
[360244769,1746658234256,-1828.42,0.00019995,2]
[360244770,1746658234265,-450.0,0.00019995,2]
[360244771,1746658234275,-450.0,0.00019995,2]
[360244772,1746658234285,-450.0,0.00019995,2]
[360244773,1746658234295,-450.0,0.00019995,2]
[360244774,1746658234305,-450.0,0.00019995,2]
[360244775,1746658234315,-450.0,0.00019995,2]
[360244776,1746658234324,-450.0,0.00019995,2]
[360244777,1746658234334,-500.0,0.00019995,2]
[360244778,1746658234343,-450.0,0.00019995,2]
[360244779,1746658234353,-2074.91,0.00019995,2]
[360244780,1746658234363,-450.0,0.00019995,2]
[360244781,1746658234372,-450.0,0.00019995,2]
[360244782,1746658234382,-421.88229875,0.00019995,2]
[360244783,1746658234405,-450.0,0.00019995,2]
[360244784,1746658234415,-517.27,0.00019995,2]
[360244785,1746658234425,-591.7217235,0.00019995,2]
[360244786,1746658234436,-450.0,0.00019995,2]
[360244787,1746658234446,-500.0,0.00019995,2]
[360244788,1746658234456,-544.27,0.00019995,2]
[360244789,1746658234466,-450.0,0.00019995,2]
[360244790,1746658234476,-450.0,0.00019995,2]
[360244791,1746658234488,-450.0,0.00019995,2]
[360244792,1746658234498,-450.0,0.00019995,2]
[360244793,1746658234508,-450.0,0.00019995,2]
[360244794,1746658234518,-450.0,0.00019995,2]
[360244795,1746658234529,-586.8477162,0.00019995,2]
[360244796,1746658234539,-450.0,0.00019995,2]
[360244797,1746658234550,-450.0,0.00019995,2]
[360244798,1746658234561,-450.0,0.00019995,2]
[360244799,1746658234571,-450.0,0.00019995,2]
[360244800,1746658234582,-450.0,0.00019995,2]
[360244801,1746658234592,-450.0,0.00019995,2]
[360244802,1746658234602,-2285.95,0.00019995,2]
[360244803,1746658234612,-1051.07,0.00019995,2]
[360244804,1746658234623,-450.0,0.00019995,2]
[360244805,1746658234633,-500.0,0.00019995,2]
[360244806,1746658234643,-510.12111796,0.00019995,2]
[360244807,1746658234654,-450.0,0.00019995,2]
[360244808,1746658234665,-450.0,0.00019995,2]
[360244809,1746658234675,-450.0,0.00019995,2]
[360244810,1746658234684,-505.78355523,0.00019995,2]
[360244811,1746658234695,-550.14100531,0.00019995,2]
[360244812,1746658234704,-450.0,0.00019995,2]
[360244813,1746658234717,-509.30790952,0.00019995,2]
[360244814,1746658234727,-450.0,0.00019995,2]
[360244815,1746658234737,-500.0,0.00019995,2]
[360244816,1746658234748,-1711.72,0.00019995,2]
[360244817,1746658234757,-450.0,0.00019995,2]
[360244818,1746658234767,-503.8322262,0.00019995,2]
[360244819,1746658234777,-450.0,0.00019995,2]
[360244820,1746658234787,-1482.31,0.00019995,2]
[360244821,1746658234798,-450.0,0.00019995,2]
[360244822,1746658234808,-500.0,0.00019995,2]
[360244823,1746658234818,-450.0,0.00019995,2]
[360244824,1746658234832,-503.84053769,0.00019995,2]
[360244825,1746658234842,-450.0,0.00019995,2]
[360244826,1746658234853,-450.0,0.00019995,2]
[360244827,1746658234864,-158.34572097,0.00019995,2]
[360244828,1746658234875,-450.0,0.00019995,2]
[360244829,1746658234886,-450.0,0.00019995,2]
[360244830,1746658234896,-450.0,0.00019995,2]
[360244831,1746658234907,-500.0,0.00019995,2]
[360244832,1746658234918,-521.29,0.00019995,2]
[360244833,1746658234927,-450.0,0.00019995,2]
[360244834,1746658234938,-450.0,0.00019995,2]
[360244835,1746658234949,-450.0,0.00019995,2]
[360244836,1746658234959,-450.0,0.00019995,2]
[360244837,1746658234973,-450.0,0.00019995,2]
[360244838,1746658234983,-522.41206452,0.00019995,2]
[360244839,1746658234993,-450.0,0.00019995,2]
[360244840,1746658235003,-1294.55,0.00019995,2]
[360244841,1746658235014,-450.0,0.00019995,2]
[360244842,1746658235024,-450.0,0.00019995,2]
[360244843,1746658235035,-506.13778058,0.00019995,2]
[360244844,1746658235046,-500.0,0.00019995,2]
[360244845,1746658235057,-509.08774167,0.00019995,2]
[360244846,1746658235068,-1516.61,0.00019995,2]
[360244847,1746658235078,-500.0,0.00019995,2]
[360244848,1746658235089,-450.0,0.00019995,2]
[360244849,1746658235099,-450.0,0.00019995,2]
[360244850,1746658235110,-450.0,0.00019995,2]
[360244851,1746658235120,-1248.05,0.00019995,2]
[360244852,1746658235131,-450.0,0.00019995,2]
[360244853,1746658235141,-774.44,0.00019995,2]
[360244854,1746658235152,-500.0,0.00019995,2]
[360244855,1746658235162,-450.0,0.00019995,2]
[360244856,1746658235173,-3298.57,0.00019995,2]
[360244857,1746658235182,-450.0,0.00019995,2]
[360244858,1746658235193,-2040.02,0.00019995,2]
[360244859,1746658235203,-450.0,0.00019995,2]
[360244860,1746658235213,-450.0,0.00019995,2]